Cogmind - Beta 9.6 @@@ ROGUE MODE // 2020.05.27 @ 01:50:25 Player: pGoos Result: Destroyed by G-34 Mercenary with Small Laser Performance ------------- Evolutions (0) 0 Regions Visited (1) 200 Robots Destroyed (8) 40 Value Destroyed (280) 280 Prototype IDs (0) 0 Alien Tech Used (0) 0 Bonus (0) 0 TOTAL SCORE: 520 Bonus ------- None Cogmind --------- Core Integrity 0/250 Matter 290/300 Energy 80/100 System Corruption 0% Temperature Cool (171) Movement Rolling (80) Location -10/Materials Parts ------- > --- POWER (1) -------- (None) > --- PROPULSION (2) --- Wheel > --- UTILITY (2) ------ Small Storage Unit Targeting Computer > --- WEAPON (2) ------- Light Assault Rifle > --- INVENTORY (6) ---- (None) Peak State ------------ > --- POWER ------------ Light Nuclear Core > --- PROPULSION ------- Aluminum Leg Aluminum Leg > --- UTILITY ---------- Small Storage Unit Light Armor Plating > --- WEAPON ----------- Medium Laser Particle Gun > --- INVENTORY -------- Light Nuclear Core Light Treads Light Treads Aluminum Leg Light Assault Rifle [Rating: 10] Favorites ----------- Power Ion Engine Engine Ion Engine Power Core Light Nuclear Core Propulsion Aluminum Leg Leg Aluminum Leg Utility Small Storage Unit Storage Small Storage Unit Processor Targeting Computer Protection Light Armor Plating Weapon EM Pulse Gun Energy Gun EM Pulse Gun Ballistic Gun Light Assault Rifle Special Weapon Mining Laser Build | -11 -10 ------- Run | Scr Mat Slots Evolved . | . . Power . | . . Propulsion . | . . Utility . | . . Weapon . | . . Parts Attached 19 | 5 14 Power 3 | 1 2 Engine 1 | 1 . Core 2 | . 2 Reactor . | . . Propulsion 4 | 2 2 Treads . | . . Leg 3 | 2 1 Wheel 1 | . 1 Hover . | . . Flight . | . . Utility 3 | . 3 Device . | . . Storage 1 | . 1 Processor 1 | . 1 Hackware . | . . Protection 1 | . 1 Artifact . | . . Weapon 9 | 2 7 Energy Gun 6 | 2 4 Energy Cannon . | . . Ballistic Gun 1 | . 1 Ballistic Cannon . | . . Launcher . | . . Special Weapon 2 | . 2 Impact Weapon . | . . Slashing Weapon . | . . Piercing Weapon . | . . Special Melee Weapon . | . . Unidentified Prototypes . | . . Parts Lost 14 | . 14 Power 2 | . 2 Propulsion 3 | . 3 Utility 1 | . 1 Weapon 8 | . 8 Highest Loss Streak 12 | . 12 Average Slot Usage (%) 92 | . 92 Engine 6 | . 6 Core 7 | . 7 Leg 26 | . 26 Storage 13 | . 13 Protection 10 | . 10 Energy Gun 25 | . 25 Naked Turns . | . . Heaviest Build 17 | 9 17 Greatest Support 20 | 20 20 Greatest Overweight (x) 1 | . 1 Average Overweight (x) . | . . Largest Inventory Capacity 6 | 4 6 Average Capacity 5 | 4 5 Most Carried 6 | 4 6 Average Carried 4 | 2 4 Final Capacity 6 | 4 6 Final Carried 4 | 4 . Class Distribution -------------------- 100% | Mutant Dominant Class ---------------- Mutant | -10/Materials Resources | -11 -10 ----------- Run | Scr Mat Matter Collected 339 | 235 104 Remotely . | . . Salvage Created 390 | . 390 Parts 18 | . 18 Haulers Intercepted . | . . Recyclers Shooed 1 | . 1 Parts Field Recycled . | . . Retrieved Matter . | . . Parts Self-Destructed . | . . Prevented . | . . Kills | -11 -10 ------- Run | Scr Mat Combat Hostiles Destroyed 7 | . 7 Guns 5 | . 5 Cannons 1 | . 1 Classes Destroyed 2 | . 2 Recycler 1 | . 1 Grunt 7 | . 7 Best Kill Streak 2 | . 2 Combat Bots Only 2 | . 2 Max Kills in Single Turn 1 | . 1 Gunslinging . | . . Exploded . | . . Melee . | . . Uniques/NPCs Destroyed . | . . Combat | -11 -10 -------- Run | Scr Mat Damage Taken 1113 | . 1113 Core 251 | . 251 Absorbed by Shields . | . . Core Remaining (%) 100 | 100 . Volleys Fired 38 | . 38 Largest 2 | . 2 Hottest 150 | . 150 Shots Fired 68 | . 68 Gun 63 | . 63 Cannon . | . . Launcher . | . . Special 5 | . 5 Kinetic 4 | . 4 Thermal 31 | . 31 Explosive . | . . Electromagnetic 33 | . 33 Robot Hit Streak 8 | . 8 Robot Miss Streak 4 | . 4 Penetration Max . | . . Secondary Targets . | . . Shots Hit Robots 43 | . 43 Core Hits 17 | . 17 Critical Hits . | . . Critical Kills . | . . Critical Parts Destroyed . | . . Melee Attacks . | . . Impact . | . . Slashing . | . . Piercing . | . . Sneak Attacks . | . . Combat Hostiles . | . . Follow-up Attacks . | . . Damage Inflicted 509 | . 509 Guns 481 | . 481 Cannons . | . . Explosions . | . . Melee . | . . Ramming . | . . Kinetic 20 | . 20 Thermal 210 | . 210 Explosive . | . . Electromagnetic 279 | . 279 Impact . | . . Slashing . | . . Piercing . | . . Highest Corruption . | . . Average Corruption . | . . Corruption Purged . | . . Overload Shots . | . . Overflow Damage . | . . Projectiles . | . . Explosions . | . . Melee . | . . Knockbacks . | . . Impact . | . . Kinetic . | . . Secondary . | . . Self-Inflicted Damage . | . . Shots . | . . Rammed . | . . Targets Rammed . | . . Kicked . | . . Crushed . | . . Highest Temperature 329 | . 329 Average Temperature 131 | . 131 Received Heat Transfer 618 | . 618 Siege Activations . | . . Robots Corrupted 1 | . 1 Combat Hostiles 1 | . 1 Parts Fried 2 | . 2 Impact Corruptions . | . . Robots Melted . | . . Combat Hostiles . | . . Parts Melted . | . . Heat Transferred 535 | . 535 Parts Sabotaged . | . . Parts Stolen . | . . Parts Stripped . | . . Power Chain Reactions . | . . Missiles Intercepted . | . . Alert | -11 -10 ------- Run | Scr Mat Peak Influence 125 | . 125 Average Influence 35 | . 40 Maximum Alert Level . | . . Low Security (%) 100 | 100 100 Level 1 . | . . Level 2 . | . . Level 3 . | . . Level 4 . | . . Level 5 . | . . High Security . | . . Max Security . | . . Squads Dispatched 3 | . 3 Investigation 1 | . 1 Extermination . | . . Reinforcement 2 | . 2 Assault . | . . Garrison . | . . Intercept . | . . Construction Impeded . | . . Haulers Reinforced . | . . Stealth | -11 -10 --------- Run | Scr Mat Distress Signals 2 | . 2 Communications Jammed . | . . Distress Signals . | . . Times Spotted 20 | . 20 Peak Tracking Total 7 | . 7 Tactical Retreats 2 | . 2 Traps | -11 -10 ------- Run | Scr Mat Traps Triggered . | . . Indirectly . | . . Trap Hack Attempts . | . . Triggered . | . . Disarmed . | . . Reprogrammed . | . . Reused . | . . Traps Extracted . | . . Installed . | . . Triggered . | . . Machines | -11 -10 ---------- Run | Scr Mat Machines Disabled 1 | . 1 Max in Single Turn 1 | . 1 Machines Sabotaged . | . . Garrisons Compromised . | . . Overloaded Fab Kills . | . . Fab Network Shutdowns . | . . Hacking | -11 -10 --------- Run | Scr Mat Machines Accessed 3 | . 3 Terminals 3 | . 3 Fabricators . | . . Repair Stations . | . . Recycling Units . | . . Scanalyzers . | . . Garrison Access . | . . Total Hacks 9 | . 9 Successful 8 | . 8 Failed 1 | . 1 Catastrophic . | . . Database Lockouts . | . . Manual . | . . Terminals 9 | . 9 Fabricators . | . . Repair Stations . | . . Recycling Units . | . . Scanalyzers . | . . Garrison Access . | . . Terminal Hacks 8 | . 8 Record 3 | . 3 Alert Level 1 | . 1 Security Status 1 | . 1 Recall Investigation 2 | . 2 Zone Layout 1 | . 1 Fabricator Hacks . | . . Repair Station Hacks . | . . Recycling Unit Hacks . | . . Scanalyzer . | . . Garrison Access Hacks . | . . Unauthorized Hacks . | . . Terminals . | . . Fabricators . | . . Repair Stations . | . . Recycling Units . | . . Scanalyzers . | . . Garrison Access . | . . Data Cores Recovered . | . . Used . | . . Hacking Detections 3 | . 3 Full Trace Events 1 | . 1 Feedback Events . | . . Feedback Blocked . | . . Robot Schematics Acquired . | . . Robots Built . | . . Matter . | . . Time . | . . Total Robot Build Rating . | . . Part Schematics Acquired . | . . Parts Built . | . . Matter . | . . Time . | . . Total Part Build Rating . | . . Parts Repaired . | . . Time . | . . Parts Recycled . | . . Recycled Matter . | . . Retrieved Matter . | . . Retrieved Components . | . . Parts Scanalyzed . | . . Part Schematics Acquired . | . . Parts Damaged . | . . Bothacking | -11 -10 ------------ Run | Scr Mat Used RIF Installer . | . . Robots Hacked . | . . Non-combat . | . . Combat . | . . Robot Hacks Applied . | . . Relay Couplers Released . | . . Robots Rewired . | . . Allies Hacked . | . . Hacks Repelled . | . . Allies | -11 -10 -------- Run | Scr Mat Total Allies . | . . Largest Group . | . . Highest-Rated Group . | . . Highest-Rated Ally . | . . Total Orders . | . . Ally Attacks . | . . Total Damage . | . . Kills . | . . Allies Corrupted . | . . Allies Melted . | . . Intel | -11 -10 ------- Run | Scr Mat Robot Analysis Total . | . . Derelict Logs Recovered . | . . Drone Launches . | . . Drone Recoveries . | . . Exploration | -11 -10 ------------- Run | Scr Mat Turns Passed 682 | 85 597 Spaces Moved 433 | 65 368 Core 8 | 6 2 Treads . | . . Legs 425 | 59 366 Wheels . | . . Hover . | . . Flight . | . . Fastest Speed 50 | 50 100 Average Speed 118 | 113 119 Slowest Speed 120 | 120 120 Overloaded Moves . | . . Propulsion Burnouts . | . . Robots Hopped . | . . Cave-ins Triggered . | . . Exploration Rate (%) 25 | 4 46 Regions Visited 1 Branch Regions . Pre-discovered Areas . | . . Known Exits Taken . | . . Unknown Exits Taken 1 | 1 . Scrap Searched . | . . Spaces Dug . | . . Terrain Destroyed 1 | . 1 Melee . | . . Projectile 1 | . 1 AOE . | . . Actions | -11 -10 --------- Run | Scr Mat Total 529 | 74 455 Wait 18 | . 18 Move 432 | 64 368 Hop . | . . Pick Up 17 | 5 12 Fast Attach 6 | 4 2 Attach 13 | 1 12 Detach . | . . Swap . | . . Drop 5 | . 5 Fire 38 | . 38 Melee . | . . Ram . | . . Kick . | . . Crush . | . . Escape Stasis . | . . Rewire . | . . Trap . | . . Miscellaneous . | . . Route ------- -11/Scrapyard -10/Materials History --------- Turn | Location | Event 38 | -11/Scrapyard | Discovered new exit (range 14) 86 | -11/Scrapyard | Entered Materials 309 | -10/Materials | Build established: Mutant 644 | -10/Materials | Core integrity fell below 50% 674 | -10/Materials | Core integrity fell below 20% 683 | -10/Materials | Destroyed by G-34 Mercenary with Small Laser Last Messages --------------- Acquired Sml. Laser. Mining Laser destroyed. Aluminum Leg destroyed. W-16 Scout sends out distress signal. U-05 Engineer destroyed. G-34 Mercenary destroyed. Aluminum Leg destroyed. Sml. Laser destroyed. Acquired Welding Torch. Sml. Laser destroyed. R-06 Scavenger collects Aluminum Leg. Lgt. Nuclear Core destroyed. R-06 Scavenger collects Sml. Storage Unit. Welding Torch destroyed. R-06 Scavenger collects Heat Sink. G-34 Mercenary destroyed. Acquired 39 matter. U-05 Engineer builds a Wall. Acquired 5 matter. Acquired Wheel. Map ----- +----------------------------------------------------+ | ?????# #????????????????????? | | ??#### #????????????????????? | | ??# # |! """ #????????????????????? | | ??# # """ #????????????????????? | | ??# + """ #????????????????##### | | ??# # #????????????????# | | ??# # #????????????????# | | ??# # #????????????????# | | ??# ###########????????????????# """ | | ??# #??????????????????????????# """ | | ??# #??????????????????######### """ | | ?## ##???######???###### ###### | | ?# ##### ##### # "" #????? | | ?# # "T #????? | | ?# T + "" #????? | | ?# ##### ##### # #????? | | ?## #################### """ #????? | | ??# #?# #??# """ #????? | | ??# #?# #??# """ #????? | | ??# ### """ """ """ #### = #????? | | ??# + """ """ """ # # [ #????? | | ??###### """ """ """ #### = ! #????? | | ???????# *%! #??# ! #????? | | ???????#######w#######??# #????? | | ???????????#%%u ##########/######### | | ???????????#@ = r | | ???????????# % | | ???????##### T """ | | ??????? # ###+##### """ | | ???????""" ## ## ## """ | | ????????????# ## ## | | ????????????# ## + | | ????????????# ## ## ### | | ????????????# g ## ## #??????? | | ????????????# ## ## #??????? | | ????????????# ## ## #??????? | | ???????????? # ## #??????? | | ???????????? # ## #??????? | | ??????????? # = ## #??????? | | ??????????? "" # ## #??????? | | ?????????? T" # ## #??????? | | ???????????? ?? ?# ## #??????? | | ?????????????????######### #??????? | | ?????????????????????????# #??????? | | ?????????????????????????# %%######## | | ?????????????????????????#* | | ?????????????????????????# | | ?????????????????????????# | | ?????????????????????????# | | ?????????????????????????# | +----------------------------------------------------+ Best States ------------- Heat Dissipation 25 Energy Generation 14 Energy Capacity 250 Matter Stores 300 Matter Capacity 300 Sight Range 16 Terrain Scan Density 10 Armor Coverage 150 Evasion (%) 40 Targeting Accuracy 5 Item Schematics ----------------- None Robot Schematics ------------------ None Fabricated ------------ Nothing Alien Tech Used ----------------- None Achievements -------------- Power Corrupts Challenges ------------ None Game ------ Seed SuperchargedCoolingArray Manual? 0 Play Time 00:12:05 Cumulative 9.9 hours Start 2020.05.27 @ 01:40:11 End 2020.05.27 @ 01:50:25 Sessions 1 Manual Loads 0 Difficulty Rogue Special Mode None Game No. 14 Rogue 14 Adventurer 0 Explorer 0 Win Type - Total 0 Types 0/0/0/0/0/0/0 Lore% 15 Gallery% 16 Achievement% 16 Wizard Run 0 Options --------- ASCII 0 Keyboard 0 Movement Mouse Keybinds 0 Fullscreen 2 Font 24/Terminus Map View 113x50 Tactical HUD 0 Map Filters NONE Filters NONE Steam 1 RUN: 54b35d41-1d35-4461-9dee-c2189243d5c0